[Event "GER-ch Youth U12 2020"]
[Site "Willingen"]
[Date "2020.10.28"]
[Round "2.6"]
[White "Udelnov, Valentin"]
[Black "Kiefhaber, Tobias"]
[Result "1/2-1/2"]
[ECO "B13"]
[WhiteElo "1691"]
[BlackElo "1542"]
[Annotator "NA RC"]
[PlyCount "161"]
[EventDate "2020.10.27"]
[EventType "swiss"]
[EventRounds "7"]
[EventCountry "GER"]
[SourceTitle "playchess.com"]
[Source "ChessBase"]
[SourceQuality "1"]
[TimeControl "40/5400+30:1800+30"]

1. e4 {[%emt 0:00:00]} c6 {[%emt 0:00:00]} 2. d4 {[%emt 0:00:00]} d5 {[%emt 0:00:00]} 3. exd5 {[%emt 0:00:09]} cxd5 {[%emt 0:00:00]} 4. Bd3 {[%emt 0:00:33]} Nc6 {[%emt 0:00:20]} 5. c3 {[%emt 0:00:20]} Nf6 {[%emt 0:01:06]} 6. Bf4 {[%emt 0:00:53]} Bg4 {[%emt 0:04:14]} 7. Qb3 {[%emt 0:02:16]} Qb6 {[%emt 0:03:13]} 8. Qxb6 {[%emt 0:05:18]} axb6 {[%emt 0:00:12]} 9. Na3 {[%emt 0:00:42]} Kd7 {[%emt 0:07:33]} 10. h3 {[%emt 0:04:49]} Bh5 {[%emt 0:03:03]} 11. Nb5 {[%emt 0:04:14]} Bg6 {[%emt 0:04:19]} 12. Be2 {[%emt 0:00:55]} Ne8 {[%emt 0:04:56]} 13. c4 {[%emt 0:08:05]} Nb4 {[%emt 0:06:21]} 14. Kd2 {[%emt 0:02:29]} Nf6 {[%emt 0:13:21]} 15. Nc3 {[%emt 0:08:53]} Nc2 {[%emt 0:06:48]} 16. Rc1 {[%emt 0:02:49]} Nxd4 {[%emt 0:00:53]} 17. cxd5 {[%emt 0:00:20]} Rc8 {[%emt 0:02:53]} 18. Nf3 {[%emt 0:04:17]} Nxf3+ {[%emt 0:10:09]} 19. Bxf3 {[%emt 0:00:56]} Rc4 {[%emt 0:03:23]} 20. Be5 {[%emt 0:06:42]} Be4 {[%emt 0:05:04]} 21. Be2 {[%emt 0:03:30]} Rb4 {[%emt 0:02:43]} 22. Bxf6 {[%emt 0:06:52]} gxf6 {[%emt 0:01:10]} 23. Nxe4 {[%emt 0:01:49]} Rxe4 {[%emt 0:01:33]} 24. Bg4+ {[%emt 0:01:21]} Kd6 {[%emt 0:01:37]} 25. Kd3 {[%emt 0:01:00]} Ra4 {[%emt 0:05:44]} 26. Rc8 {[%emt 0:02:08]} Bg7 {[%emt 0:02:38]} 27. a3 {[%emt 0:09:25]} f5 {[%emt 0:05:27]} 28. Bxf5 {[%emt 0:03:09]} Rxc8 {[%emt 0:01:31]} 29. Bxc8 {[%emt 0:00:09]} Bxb2 {[%emt 0:01:08]} 30. Bxb7 {[%emt 0:00:28]} Bxa3 {[%emt 0:01:05]} 31. Bc6 {[%emt 0:03:16]} Rf4 {[%emt 0:01:26]} 32. Ra1 {[%emt 0:02:07]} Bc5 {[%emt 0:01:13]} 33. f3 {[%emt 0:00:46]} e6 {[%emt 0:00:48]} 34. Ra4 {[%emt 0:01:22]} Rxa4 {[%emt 0:00:33]} 35. Bxa4 {[%emt 0:00:06]} exd5 {[%emt 0:00:24]} 36. Bb5 {[%emt 0:00:27]} Ke5 {[%emt 0:00:32]} 37. g3 {[%emt 0:01:47]} Bf2 {[%emt 0:00:26]} 38. f4+ {[%emt 0:00:39]} Kd6 {[%emt 0:00:38]} 39. g4 {[%emt 0:00:55]} f6 {[%emt 0:00:30]} 40. Kc3 {[%emt 0:02:39]} Bg3 {[%emt 0:00:28]} 41. f5 {[%emt 0:30:19]} Ke5 {[%emt 0:00:54]} 42. Bd3 {[%emt 0:00:00]} Bf2 {[%emt 0:02:50]} 43. Ba6 {[%emt 0:00:00]} h6 {[%emt 0:01:22]} 44. Bb5 {[%emt 0:00:00]} Bc5 {[%emt 0:01:10]} 45. Bd3 {[%emt 0:00:00]} Kf4 {[%emt 0:01:16]} 46. Bf1 {[%emt 0:00:00]} Ke3 {[%emt 0:01:06]} 47. Kb3 {[%emt 0:00:00]} d4 {[%emt 0:01:06]} 48. Kc4 {[%emt 0:00:00]} Bd6 {[%emt 0:01:22]} 49. h4 {[%emt 0:00:00]} Bf4 {[%emt 0:01:00]} 50. g5 {[%emt 0:01:36]} hxg5 {[%emt 0:00:48]} 51. hxg5 {[%emt 0:00:58]} Bxg5 {[%emt 0:00:15]} 52. Bh3 {[%emt 0:04:12]} d3 {[%emt 0:00:53]} 53. Kc3 {[%emt 0:00:05]} d2 {[%emt 0:00:25]} 54. Kc2 {[%emt 0:00:07]} Kf2 {[%emt 0:00:18]} 55. Kd1 {[%emt 0:00:13]} b5 {[%emt 0:00:39]} 56. Bg4 {[%emt 0:00:47]} b4 {[%emt 0:00:12]} 57. Be2 {[%emt 0:00:27]} Ke3 {[%emt 0:00:32]} 58. Bc4 {[%emt 0:00:29]} Kd4 {[%emt 0:00:33]} 59. Bg8 {[%emt 0:02:48]} Kc3 {[%emt 0:00:33]} 60. Bf7 {[%emt 0:00:11]} b3 {[%emt 0:00:13]} 61. Be6 {[%emt 0:00:05]} Kb2 {[%emt 0:00:41]} 62. Bd5 {[%emt 0:00:11]} Ka3 {[%emt 0:00:19]} 63. Be4 {[%emt 0:00:16]} Kb2 {[%emt 0:03:13]} 64. Bd5 {[%emt 0:00:08]} Kc3 {[%emt 0:02:10]} 65. Be6 {[%emt 0:02:48]} Kb4 {[%emt 0:03:29]} 66. Bd5 {[%emt 0:00:23]} Bf4 {[%emt 0:02:01]} 67. Ke2 {[%emt 0:01:25]} Kc3 {[%emt 0:01:15]} 68. Kd1 {[%emt 0:00:19]} Be3 {[%emt 0:00:49]} 69. Be6 {[%emt 0:00:42]} Bc5 {[%emt 0:00:26]} 70. Bf7 {[%emt 0:00:49]} Ba3 {[%emt 0:00:47]} 71. Be6 {[%emt 0:00:14]} Bc1 {[%emt 0:01:37]} 72. Bf7 {[%emt 0:00:50]} Kb4 {[%emt 0:00:23]} 73. Bd5 {[%emt 0:00:08]} Ka3 {[%emt 0:00:42]} 74. Be4 {[%emt 0:00:12]} Ka2 {[%emt 0:00:15]} 75. Bd5 {[%emt 0:00:06]} Kb2 {[%emt 0:00:47]} 76. Bc4 {[%emt 0:00:22]} Kc3 {[%emt 0:00:25]} 77. Be6 {[%emt 0:00:10]} b2 78. Ba2 {[%emt 0:00:14]} Kd3 {[%emt 0:00:31]} 79. Bb1+ {[%emt 0:00:24]} Ke3 {[%emt 0:00:04]} 80. Bc2 {[%emt 0:00:05]} Kf3 {[%emt 0:00:06]} 81. Bb1 {[%emt 0:00:06]} 1/2-1/2

[Event "GER-ch Youth U12 2020"]
[Site "Willingen"]
[Date "2020.10.28"]
[Round "2.7"]
[White "Fruth, David"]
[Black "Sommer, Justus"]
[Result "1/2-1/2"]
[ECO "C68"]
[WhiteElo "1665"]
[BlackElo "1845"]
[Annotator "NA RC"]
[PlyCount "45"]
[EventDate "2020.10.27"]
[EventType "swiss"]
[EventRounds "7"]
[EventCountry "GER"]
[SourceTitle "playchess.com"]
[Source "ChessBase"]
[SourceQuality "1"]
[TimeControl "40/5400+30:1800+30"]

{[%evp 17,45,16,28,28,32767,17,22,4,0,32767,32767,-162,-143,-173,-118,-502,32767,32767,32767,-99,0,32767,32767,0,0,-53,0,-88,-87,-93]} 1. e4 {[%emt 0:00:00]} e5 {[%emt 0:00:07]} 2. Nf3 {[%emt 0:00:00]} Nc6 {[%emt 0:00:10]} 3. Bb5 {[%emt 0:00:00]} a6 {[%emt 0:00:13]} 4. Bxc6 {[%emt 0:00:00]} dxc6 {[%emt 0:00:09]} 5. O-O {[%emt 0:00:00]} Qf6 {[%emt 0:00:20]} 6. d4 {[%emt 0:00:07] C68: Ruy Lopez: Exchange Variation, sidelines.} exd4 {[%emt 0:00:49]} 7. Bg5 {[%emt 0:00:02]} Qd6 {[%emt 0:00:29]} 8. Nxd4 {[%emt 0:00:02]} Be7 {[%emt 0:01:11]} 9. Bxe7 {[%emt 0:12:04]} Nxe7 {[%emt 0:01:06]} 10. Nc3 {[%emt 0:03:00]} O-O {[%emt 0:01:49]} 11. Re1 {[%emt 0:05:10]} Rd8 {[%emt 0:03:53] [#]} 12. Re3 $146 {[%emt 0:03:36]} ({Predecessor:} 12. Qe2 Qg6 13. Qe3 c5 14. Nde2 Qc6 15. Nf4 Be6 16. Rad1 h6 17. h3 b5 18. Nxe6 fxe6 {½-½ (33) Loewe,L (2202)-Sengos,G Baden 2018}) 12... Ng6 {[%emt 0:13:03]} ({Weaker is} 12... Qxd4 13. Rd3 $16) 13. Rd3 {[%emt 0:01:38]} Qf6 {[%emt 0:07:29]} 14. e5 $2 {[%emt 0:03:23]} (14. Qf3 $11 {and White has nothing to worry.}) 14... Nxe5 {[%emt 0:03:24]} 15. Ne4 {[%emt 0:01:05]} Qh4 {[%emt 0:11:59]} 16. Re3 $2 {[%emt 0:02:56]} (16. Nf3 $17 {nothing else works.} Nxf3+ 17. Qxf3 Rxd3 18. cxd3) 16... Nc4 {[%emt 0:04:39]} 17. Re2 {[%emt 0:01:24]} Be6 {[%emt 0:06:13]} 18. c3 {[%emt 0:06:24]} Qe7 {[%emt 0:10:12]} (18... Bd5 $17 19. Qc2 Bxe4 20. Rxe4 Qf6) 19. Qc2 {[%emt 0:00:33]} h6 {[%emt 0:01:30]} 20. Ng3 {[%emt 0:02:07]} Qf6 {[%emt 0:02:10]} 21. Rae1 {[%emt 0:02:32]} Re8 {[%emt 0:01:59]} (21... Bd7 $15) 22. Nh5 {[%emt 0:02:50]} (22. Nxe6 $11 {remains equal.} Rxe6 23. Rxe6 fxe6 24. Qe2) 22... Qg5 {[%emt 0:01:31]} 23. Ng3 $17 {[%emt 0:00:37]} 1/2-1/2

[Event "GER-ch Youth U12 2020"]
[Site "Willingen"]
[Date "2020.10.28"]
[Round "2.9"]
[White "Deschler, Arne"]
[Black "Klaska, Philipp Leon"]
[Result "1/2-1/2"]
[ECO "B26"]
[WhiteElo "1671"]
[BlackElo "1716"]
[Annotator "NA RC"]
[PlyCount "95"]
[EventDate "2020.10.27"]
[EventType "swiss"]
[EventRounds "7"]
[EventCountry "GER"]
[SourceTitle "playchess.com"]
[Source "ChessBase"]
[SourceQuality "1"]
[TimeControl "40/5400+30:1800+30"]

1. e4 {[%emt 0:00:00]} c5 {[%emt 0:00:00]} 2. Nc3 {[%emt 0:00:02]} Nc6 {[%emt 0:00:05]} 3. g3 {[%emt 0:00:09]} g6 {[%emt 0:00:25]} 4. Bg2 {[%emt 0:00:25]} Bg7 {[%emt 0:00:15]} 5. d3 {[%emt 0:00:23]} d6 {[%emt 0:00:32]} 6. Be3 {[%emt 0:00:30]} Rb8 {[%emt 0:01:03]} 7. Qd2 {[%emt 0:00:41]} b5 {[%emt 0:00:54]} 8. Nge2 {[%emt 0:00:57]} b4 {[%emt 0:01:23]} 9. Nd1 {[%emt 0:00:27]} Nf6 {[%emt 0:02:00]} 10. Bh6 {[%emt 0:01:49]} O-O {[%emt 0:02:46]} 11. Bxg7 {[%emt 0:01:20]} Kxg7 {[%emt 0:00:03]} 12. Ne3 {[%emt 0:00:46]} Ng4 {[%emt 0:09:25]} 13. h3 {[%emt 0:07:31]} Nxe3 {[%emt 0:00:30]} 14. Qxe3 {[%emt 0:00:30]} Qb6 {[%emt 0:00:30]} 15. h4 {[%emt 0:00:30]} h5 {[%emt 0:00:30]} 16. Nf4 {[%emt 0:00:30]} Ne5 {[%emt 0:00:30]} 17. Nd5 {[%emt 0:00:30]} Qd8 {[%emt 0:00:30]} 18. d4 {[%emt 0:00:30]} Nc4 {[%emt 0:00:30]} 19. Qd3 {[%emt 0:28:20]} Nb6 {[%emt 0:51:12]} 20. dxc5 {[%emt 0:01:58]} dxc5 {[%emt 0:02:14]} 21. Rd1 {[%emt 0:03:18]} Nxd5 {[%emt 0:05:42]} 22. Qxd5 {[%emt 0:01:06]} Qxd5 {[%emt 0:00:56]} 23. Rxd5 {[%emt 0:01:41]} c4 {[%emt 0:01:12]} 24. Ke2 {[%emt 0:04:17]} Be6 {[%emt 0:01:42]} 25. Rd4 {[%emt 0:00:49]} a5 {[%emt 0:03:44]} 26. Rhd1 {[%emt 0:02:08]} a4 {[%emt 0:00:51]} 27. b3 {[%emt 0:02:26]} axb3 {[%emt 0:01:57]} 28. axb3 {[%emt 0:00:12]} cxb3 {[%emt 0:00:24]} 29. cxb3 {[%emt 0:00:07]} Rfc8 {[%emt 0:01:52]} 30. R4d3 {[%emt 0:02:06]} Rc3 {[%emt 0:01:24]} 31. Rb1 {[%emt 0:01:19]} Rbc8 {[%emt 0:01:18]} 32. Rd4 {[%emt 0:03:58]} Rb8 {[%emt 0:01:18]} 33. Rd3 {[%emt 0:02:17]} Rxd3 {[%emt 0:02:36]} 34. Kxd3 {[%emt 0:00:12]} Rc8 {[%emt 0:00:20]} 35. e5 {[%emt 0:03:27]} Rc3+ {[%emt 0:01:18]} 36. Kd4 {[%emt 0:00:44]} Rc2 {[%emt 0:00:53]} 37. Ke3 {[%emt 0:00:33]} Bf5 {[%emt 0:00:59]} 38. Be4 {[%emt 0:05:39]} Rc3+ {[%emt 0:02:06]} 39. Kd4 {[%emt 0:01:23]} Bxe4 {[%emt 0:01:07]} 40. Kxe4 {[%emt 0:00:36]} f6 {[%emt 0:01:49]} 41. Rb2 {[%emt 0:30:30]} Kf7 {[%emt 0:30:30]} 42. exf6 {[%emt 0:00:00]} exf6 {[%emt 0:00:00]} 43. Kf4 {[%emt 0:00:00]} Rd3 {[%emt 0:00:00]} 44. Ke4 {[%emt 0:00:00]} Rc3 {[%emt 0:00:00]} 45. Kf4 {[%emt 0:00:00]} Rd3 {[%emt 0:00:00]} 46. Rb1 {[%emt 0:00:00]} Rc3 {[%emt 0:00:00]} 47. f3 {[%emt 0:00:00]} Rd3 {[%emt 0:00:00]} 48. Rb2 {[%emt 0:00:00]} 1/2-1/2

[Event "GER-ch Youth U12 2020"]
[Site "Willingen"]
[Date "2020.10.28"]
[Round "2.10"]
[White "Zobel, Christian"]
[Black "Eichhorn, Valentin"]
[Result "1/2-1/2"]
[ECO "B40"]
[WhiteElo "1521"]
[BlackElo "1545"]
[Annotator "NA RC"]
[PlyCount "48"]
[EventDate "2020.10.27"]
[EventType "swiss"]
[EventRounds "7"]
[EventCountry "GER"]
[SourceTitle "playchess.com"]
[Source "ChessBase"]
[SourceQuality "1"]
[TimeControl "40/5400+30:1800+30"]

1. e4 {[%emt 0:00:00]} c5 {[%emt 0:00:00]} 2. Nf3 {[%emt 0:00:00]} e6 {[%emt 0:00:00]} 3. c3 {[%emt 0:00:00]} d5 {[%emt 0:00:15]} 4. Bd3 {[%emt 0:00:10]} Nc6 {[%emt 0:00:39]} 5. O-O {[%emt 0:01:21]} Nf6 {[%emt 0:04:17]} 6. exd5 {[%emt 0:03:09]} Qxd5 {[%emt 0:01:21]} 7. Bc2 {[%emt 0:01:15]} Be7 {[%emt 0:01:15]} 8. d3 {[%emt 0:10:28]} O-O {[%emt 0:02:18]} 9. Bg5 {[%emt 0:06:45]} b6 {[%emt 0:02:54]} 10. Nbd2 {[%emt 0:02:04]} Bb7 {[%emt 0:00:57]} 11. Bxf6 {[%emt 0:04:02]} Bxf6 {[%emt 0:01:01]} 12. Ne4 {[%emt 0:00:09]} Be7 {[%emt 0:05:04]} 13. Qe2 {[%emt 0:07:33]} Qd8 {[%emt 0:14:05]} 14. Rad1 {[%emt 0:03:54]} Ba6 {[%emt 0:03:54]} 15. Qe3 {[%emt 0:10:39]} h6 {[%emt 0:01:50]} 16. Rfe1 {[%emt 0:01:07]} Rc8 {[%emt 0:07:31]} 17. d4 {[%emt 0:08:19]} cxd4 {[%emt 0:01:29]} 18. Nxd4 {[%emt 0:00:51]} Nxd4 {[%emt 0:01:15]} 19. Rxd4 {[%emt 0:01:57]} Qc7 {[%emt 0:01:25]} 20. Red1 {[%emt 0:08:11]} Rfd8 {[%emt 0:02:15]} 21. Bb3 {[%emt 0:02:49]} Rxd4 {[%emt 0:03:53]} 22. Rxd4 {[%emt 0:02:22]} Rd8 {[%emt 0:01:32]} 23. Qd2 {[%emt 0:01:10]} Rxd4 {[%emt 0:02:19]} 24. Qxd4 Qf4 1/2-1/2

[Event "GER-ch Youth U12 2020"]
[Site "Willingen"]
[Date "2020.10.28"]
[Round "2.11"]
[White "Kieselbach, Jannik"]
[Black "Braeutigam, Alexander"]
[Result "1-0"]
[ECO "D53"]
[WhiteElo "1453"]
[BlackElo "1631"]
[Annotator "NA RC"]
[PlyCount "75"]
[EventDate "2020.10.27"]
[EventType "swiss"]
[EventRounds "7"]
[EventCountry "GER"]
[SourceTitle "playchess.com"]
[Source "ChessBase"]
[SourceQuality "1"]
[TimeControl "40/5400+30:1800+30"]

1. d4 {[%emt 0:00:00]} d5 {[%emt 0:00:00]} 2. c4 {[%emt 0:00:00]} e6 {[%emt 0:00:04]} 3. Nc3 {[%emt 0:00:01]} Nf6 {[%emt 0:00:17]} 4. Bg5 {[%emt 0:00:50]} Be7 {[%emt 0:00:56]} 5. e3 {[%emt 0:01:24]} h6 {[%emt 0:01:22]} 6. Bh4 {[%emt 0:01:22]} b6 {[%emt 0:02:04]} 7. cxd5 {[%emt 0:01:29]} Nxd5 {[%emt 0:02:17]} 8. Bxe7 {[%emt 0:07:05]} Qxe7 {[%emt 0:00:36]} 9. Nxd5 {[%emt 0:01:31]} exd5 {[%emt 0:00:18]} 10. a3 {[%emt 0:01:40]} O-O {[%emt 0:01:16]} 11. Rc1 {[%emt 0:09:09]} f5 {[%emt 0:02:54]} 12. Nf3 {[%emt 0:14:56]} f4 {[%emt 0:02:06]} 13. Qb3 {[%emt 0:00:53]} Bb7 {[%emt 0:01:59]} 14. Be2 {[%emt 0:01:37]} fxe3 {[%emt 0:01:30]} 15. Qxe3 {[%emt 0:04:06]} Qxe3 16. fxe3 {[%emt 0:00:32]} c6 {[%emt 0:02:09]} 17. O-O {[%emt 0:00:36]} Nd7 {[%emt 0:01:22]} 18. Nh4 {[%emt 0:01:22]} Rae8 {[%emt 0:01:47]} 19. Rc3 {[%emt 0:08:16]} Nf6 {[%emt 0:04:12]} 20. Bd3 {[%emt 0:03:49]} Ne4 {[%emt 0:03:07]} 21. Rxf8+ {[%emt 0:01:37]} Kxf8 {[%emt 0:00:56]} 22. Rc1 {[%emt 0:07:56]} Nd6 {[%emt 0:02:33]} 23. Re1 {[%emt 0:02:24]} c5 {[%emt 0:01:11]} 24. Ng6+ {[%emt 0:09:53]} Kg8 {[%emt 0:00:39]} 25. Ne5 {[%emt 0:00:31]} Bc8 {[%emt 0:02:07]} 26. Rf1 {[%emt 0:01:27]} Rf8 {[%emt 0:00:48]} 27. Bh7+ {[%emt 0:00:59]} Kxh7 {[%emt 0:00:52]} 28. Rxf8 {[%emt 0:00:13]} Bf5 {[%emt 0:00:35]} 29. dxc5 {[%emt 0:01:26]} bxc5 {[%emt 0:00:10]} 30. Rd8 {[%emt 0:00:32]} Ne4 {[%emt 0:00:54]} 31. Rxd5 {[%emt 0:00:46]} g6 {[%emt 0:00:47]} 32. Rd8 {[%emt 0:00:59]} Kg7 {[%emt 0:00:28]} 33. Ra8 {[%emt 0:01:19]} Kf6 {[%emt 0:00:22]} 34. Nf3 {[%emt 0:00:42]} Ke6 {[%emt 0:00:31]} 35. Rxa7 {[%emt 0:01:12]} Kd5 {[%emt 0:00:17]} 36. Nh4 {[%emt 0:00:56]} Be6 {[%emt 0:01:13]} 37. Nxg6 {[%emt 0:00:36]} Kc4 {[%emt 0:00:22]} 38. Ra4+ 1-0

[Event "GER-ch Youth U12 2020"]
[Site "Willingen"]
[Date "2020.10.28"]
[Round "2.13"]
[White "Nitsche, Nikolai"]
[Black "Guo, Jacob Tingshen"]
[Result "1-0"]
[ECO "A00"]
[WhiteElo "1721"]
[BlackElo "1551"]
[Annotator "NA RC"]
[PlyCount "47"]
[EventDate "2020.10.27"]
[EventType "swiss"]
[EventRounds "7"]
[EventCountry "GER"]
[SourceTitle "playchess.com"]
[Source "ChessBase"]
[SourceQuality "1"]
[TimeControl "40/5400+30:1800+30"]

1. g3 {[%emt 0:00:00]} f5 {[%emt 0:00:06]} 2. Nf3 {[%emt 0:00:37]} Nf6 {[%emt 0:00:46]} 3. Bg2 {[%emt 0:00:28]} g6 {[%emt 0:01:29]} 4. O-O {[%emt 0:00:57]} Bg7 {[%emt 0:01:40]} 5. d4 {[%emt 0:01:04]} O-O {[%emt 0:01:08]} 6. c3 {[%emt 0:00:55]} e6 {[%emt 0:11:51]} 7. Ne5 {[%emt 0:03:15]} d6 {[%emt 0:05:19]} 8. Nd3 {[%emt 0:00:15]} Qe7 {[%emt 0:05:02]} 9. Nd2 {[%emt 0:03:06]} c6 {[%emt 0:02:45]} 10. b3 {[%emt 0:05:26]} Rd8 {[%emt 0:08:02]} 11. a4 {[%emt 0:02:35]} e5 {[%emt 0:09:47]} 12. dxe5 {[%emt 0:00:56]} dxe5 {[%emt 0:00:27]} 13. Ba3 {[%emt 0:00:26]} Qe8 {[%emt 0:05:16]} 14. Qc2 {[%emt 0:02:18]} e4 {[%emt 0:06:01]} 15. Nf4 {[%emt 0:04:23]} e3 {[%emt 0:02:40]} 16. Nc4 {[%emt 0:01:05]} exf2+ {[%emt 0:02:52]} 17. Rxf2 {[%emt 0:01:00]} Ng4 {[%emt 0:02:45]} 18. Rf3 {[%emt 0:00:18]} Ne5 {[%emt 0:02:32]} 19. Re3 {[%emt 0:00:29]} c5 {[%emt 0:16:38]} 20. Bxc5 {[%emt 0:05:18]} Nbc6 {[%emt 0:02:05]} 21. Nd6 {[%emt 0:01:46]} Qd7 {[%emt 0:02:57]} 22. Bd5+ {[%emt 0:01:42]} Kh8 {[%emt 0:02:09]} 23. Be6 {[%emt 0:00:54]} Qe7 {[%emt 0:03:00]} 24. Nf7+ {[%emt 0:00:27]} 1-0

[Event "GER-ch Youth U12 2020"]
[Site "Willingen"]
[Date "2020.10.28"]
[Round "2.14"]
[White "Isbilir, Levin"]
[Black "Sauer, Tim"]
[Result "0-1"]
[ECO "B10"]
[WhiteElo "1233"]
[BlackElo "1729"]
[Annotator "NA RC"]
[PlyCount "60"]
[EventDate "2020.10.27"]
[EventType "swiss"]
[EventRounds "7"]
[EventCountry "GER"]
[SourceTitle "playchess.com"]
[Source "ChessBase"]
[SourceQuality "1"]
[TimeControl "40/5400+30:1800+30"]

1. e4 {[%emt 0:00:00]} c6 {[%emt 0:00:00]} 2. Nc3 {[%emt 0:00:00]} d5 {[%emt 0:00:00]} 3. Qf3 {[%emt 0:00:00]} e6 {[%emt 0:02:04]} 4. d3 {[%emt 0:02:56]} Bd6 {[%emt 0:00:31]} 5. Qg4 {[%emt 0:03:16]} g6 {[%emt 0:04:31]} 6. f4 {[%emt 0:12:22]} Ne7 {[%emt 0:05:27]} 7. e5 {[%emt 0:11:47]} Bb4 {[%emt 0:01:55]} 8. Bd2 {[%emt 0:08:33]} c5 {[%emt 0:02:55]} 9. Nf3 {[%emt 0:02:30]} a6 {[%emt 0:01:33]} 10. Qh3 {[%emt 0:04:29]} b5 {[%emt 0:06:06]} 11. g4 {[%emt 0:01:37]} Bb7 {[%emt 0:01:04]} 12. Qh6 {[%emt 0:14:49]} d4 {[%emt 0:03:44]} 13. Ne4 {[%emt 0:00:49]} Bxe4 {[%emt 0:00:24]} 14. dxe4 {[%emt 0:00:51]} Bxd2+ {[%emt 0:00:14]} 15. Kxd2 {[%emt 0:03:20]} Qa5+ {[%emt 0:05:18]} 16. Kd1 {[%emt 0:00:24]} Nbc6 {[%emt 0:04:45]} 17. Ng5 {[%emt 0:03:19]} d3 {[%emt 0:05:11]} 18. cxd3 {[%emt 0:03:45]} O-O-O {[%emt 0:03:51]} 19. Nxf7 {[%emt 0:02:53]} Qa4+ {[%emt 0:00:52]} 20. Kd2 {[%emt 0:09:32]} Qb4+ {[%emt 0:06:41]} 21. Ke3 {[%emt 0:01:29]} Qd4+ {[%emt 0:05:00]} 22. Kf3 {[%emt 0:00:50]} Rhf8 {[%emt 0:05:29]} 23. Nxd8 {[%emt 0:03:39]} Nxe5+ {[%emt 0:00:55]} 24. Kg2 {[%emt 0:01:08]} Qxb2+ {[%emt 0:00:51]} 25. Kh3 {[%emt 0:01:35]} Qf2 {[%emt 0:05:28]} 26. Qh4 {[%emt 0:03:09]} Qf3+ {[%emt 0:06:50]} 27. Qg3 {[%emt 0:00:03]} Qxh1 {[%emt 0:00:39]} 28. Nxe6 {[%emt 0:00:14]} Rf6 {[%emt 0:01:37]} 29. Nxc5 {[%emt 0:01:11]} g5 {[%emt 0:02:00]} 30. f5 {[%emt 0:00:35]} Rh6+ {[%emt 0:00:11]} 0-1

[Event "GER-ch Youth U12 2020"]
[Site "Willingen"]
[Date "2020.10.28"]
[Round "2.15"]
[White "Winkler, Yonathan"]
[Black "Schreidl, Michael"]
[Result "1-0"]
[ECO "C48"]
[WhiteElo "1680"]
[BlackElo "1640"]
[Annotator "NA RC"]
[PlyCount "157"]
[EventDate "2020.10.27"]
[EventType "swiss"]
[EventRounds "7"]
[EventCountry "GER"]
[SourceTitle "playchess.com"]
[Source "ChessBase"]
[SourceQuality "1"]
[TimeControl "40/5400+30:1800+30"]

1. e4 {[%emt 0:00:00]} e5 {[%emt 0:00:00]} 2. Nf3 {[%emt 0:00:00]} Nc6 {[%emt 0:00:00]} 3. Nc3 {[%emt 0:00:00]} Nf6 {[%emt 0:00:00]} 4. Bb5 {[%emt 0:00:00]} Bd6 {[%emt 0:00:00]} 5. d3 {[%emt 0:00:00]} O-O {[%emt 0:00:22]} 6. Bg5 {[%emt 0:00:13]} Be7 {[%emt 0:00:33]} 7. Qd2 {[%emt 0:02:01]} d6 {[%emt 0:07:06]} 8. a3 {[%emt 0:08:58]} Bg4 {[%emt 0:04:42]} 9. Bxc6 {[%emt 0:05:44]} bxc6 {[%emt 0:00:09]} 10. h3 {[%emt 0:00:14]} Bc8 {[%emt 0:05:11]} 11. Ne2 {[%emt 0:11:01]} Nd7 {[%emt 0:04:42]} 12. Bxe7 {[%emt 0:05:16]} Qxe7 {[%emt 0:00:07]} 13. Ng3 {[%emt 0:00:05]} Nc5 {[%emt 0:05:43]} 14. b4 {[%emt 0:03:45]} Na4 {[%emt 0:00:54]} 15. c4 {[%emt 0:03:06]} c5 {[%emt 0:03:34]} 16. O-O {[%emt 0:07:14]} Bd7 {[%emt 0:08:29]} 17. Rfd1 {[%emt 0:07:22]} Rfb8 {[%emt 0:05:05]} 18. Rab1 {[%emt 0:02:25]} Rb6 {[%emt 0:08:00]} 19. b5 {[%emt 0:03:40]} Rbb8 {[%emt 0:11:54]} 20. Qc2 {[%emt 0:02:37]} Nb6 {[%emt 0:00:11]} 21. a4 {[%emt 0:00:09]} Nc8 {[%emt 0:04:20]} 22. Nd2 {[%emt 0:04:26]} c6 {[%emt 0:03:43]} 23. Ndf1 {[%emt 0:00:39]} cxb5 {[%emt 0:02:05]} 24. axb5 {[%emt 0:00:47]} g6 {[%emt 0:02:25]} 25. Ne3 {[%emt 0:01:20]} Nb6 {[%emt 0:00:50]} 26. Ra1 {[%emt 0:02:35]} Rb7 {[%emt 0:00:48]} 27. Ra6 {[%emt 0:01:45]} Be6 {[%emt 0:02:20]} 28. Rda1 {[%emt 0:01:58]} Nc8 {[%emt 0:03:57]} 29. Ne2 {[%emt 0:01:14]} Qg5 {[%emt 0:03:47]} 30. Kh2 {[%emt 0:03:18]} f5 {[%emt 0:04:17]} 31. Nf1 {[%emt 0:02:21]} f4 {[%emt 0:02:28]} 32. f3 {[%emt 0:00:09]} h5 {[%emt 0:00:34]} 33. Nc1 {[%emt 0:00:17]} Qh4 {[%emt 0:01:36]} 34. Nb3 {[%emt 0:00:04]} Nb6 {[%emt 0:00:58]} 35. Na5 {[%emt 0:00:39]} Rg7 {[%emt 0:00:48]} 36. Nc6 {[%emt 0:00:08]} Nc8 {[%emt 0:00:44]} 37. b6 {[%emt 0:00:42]} g5 {[%emt 0:00:43]} 38. Nd8 {[%emt 0:02:35]} Bd7 {[%emt 0:00:34]} 39. b7 {[%emt 0:01:25]} Rb8 {[%emt 0:00:22]} 40. bxc8=Q Rxc8 41. Nb7 {[%emt 0:31:42]} g4 {[%emt 0:31:55]} 42. Kh1 {[%emt 0:02:03]} g3 {[%emt 0:01:51]} 43. Kg1 {[%emt 0:00:59]} Bxh3 {[%emt 0:02:21]} 44. gxh3 {[%emt 0:00:05]} g2 {[%emt 0:00:26]} 45. Nh2 {[%emt 0:00:18]} Rg3 {[%emt 0:01:13]} 46. Rxd6 {[%emt 0:00:54]} Rc7 {[%emt 0:00:35]} 47. Nxc5 {[%emt 0:00:00]} Qe7 {[%emt 0:00:00]} 48. Raa6 {[%emt 0:00:00]} Rxc5 {[%emt 0:00:00]} 49. Qb3 {[%emt 0:00:00]} Kh7 {[%emt 0:00:00]} 50. Qa3 {[%emt 0:00:00]} Rc7 {[%emt 0:00:00]} 51. Rh6+ {[%emt 0:00:00]} Kg7 {[%emt 0:00:00]} 52. Qxe7+ {[%emt 0:00:00]} Rxe7 {[%emt 0:00:00]} 53. Rxh5 {[%emt 0:00:00]} Rb7 {[%emt 0:00:00]} 54. Ra1 {[%emt 0:00:00]} Kf6 {[%emt 0:00:00]} 55. Rf5+ {[%emt 0:00:00]} Ke6 {[%emt 0:00:00]} 56. Ra6+ {[%emt 0:00:00]} Ke7 {[%emt 0:00:00]} 57. Rxe5+ {[%emt 0:00:00]} Kd7 {[%emt 0:00:00]} 58. Rb5 {[%emt 0:00:00]} Rxb5 {[%emt 0:00:00]} 59. cxb5 {[%emt 0:00:00]} Kc7 {[%emt 0:00:00]} 60. Rxa7+ {[%emt 0:00:00]} Kb6 {[%emt 0:00:00]} 61. Rf7 {[%emt 0:00:11]} Kxb5 {[%emt 0:00:00]} 62. Rxf4 {[%emt 0:00:06]} Rxh3 {[%emt 0:00:00]} 63. Kxg2 {[%emt 0:00:05]} Rh8 {[%emt 0:00:00]} 64. Ng4 {[%emt 0:00:10]} Kc5 {[%emt 0:00:00]} 65. e5 {[%emt 0:00:12]} Kd5 {[%emt 0:00:00]} 66. Re4 {[%emt 0:00:05]} Ke6 {[%emt 0:00:00]} 67. Kf2 {[%emt 0:00:14]} Ra8 {[%emt 0:00:00]} 68. Ke3 {[%emt 0:00:06]} Rd8 {[%emt 0:00:00]} 69. Rd4 {[%emt 0:00:08]} Rf8 {[%emt 0:00:00]} 70. Rd6+ {[%emt 0:00:08]} Ke7 {[%emt 0:00:00]} 71. Ke4 {[%emt 0:00:03]} Ra8 {[%emt 0:00:00]} 72. f4 {[%emt 0:00:08]} Rf8 {[%emt 0:00:00]} 73. f5 {[%emt 0:00:06]} Rg8 {[%emt 0:00:00]} 74. Nf6 {[%emt 0:00:07]} Ra8 {[%emt 0:00:00]} 75. Rd7+ {[%emt 0:00:08]} Kf8 {[%emt 0:00:00]} 76. Nd5 {[%emt 0:00:10]} Ra4+ {[%emt 0:00:00]} 77. d4 {[%emt 0:00:05]} Ra8 {[%emt 0:00:00]} 78. e6 {[%emt 0:00:07]} Re8 {[%emt 0:00:00]} 79. Rf7+ {[%emt 0:00:06]} 1-0